lending/lending_fUSD_20260102
["ID","MTS","AMOUNT","RATE_DAILY","PERIOD"]
[400304817,1767331841502,-500.0,0.00016438,2]
[400304818,1767331841510,-500.0,0.00016438,2]
[400304819,1767331841519,-500.0,0.00016438,2]
[400304820,1767331841528,-500.0,0.00016438,2]
[400304821,1767331841538,-518.47198574,0.00016438,2]
[400304822,1767331841546,-500.0,0.00016438,2]
[400304823,1767331841555,-500.0,0.00016438,2]
[400304824,1767331841564,-500.0,0.00016438,2]
[400304825,1767331841573,-500.0,0.00016438,2]
[400304826,1767331841582,-500.0,0.00016438,2]
[400304827,1767331841592,-2566.35,0.00016438,2]
[400304828,1767331841601,-810.15422801,0.00016438,2]
[400304829,1767331841610,-2800.5632075,0.00016471,2]
[400304830,1767331841618,-353.30897806,0.00016562,2]
[400304831,1767331841627,-239.71439908,0.0001666,2]
[400304832,1767331841636,-2800.5632075,0.00016686,2]
[400304833,1767331841645,-1620.0,0.00016774,2]
[400304834,1767331841654,-587.0,0.00016814,2]
[400304835,1767331841663,-2056.1518,0.000169,2]
[400304836,1767331841672,-353.30897806,0.000169,2]
[400304837,1767331841680,-1113.37789354,0.000169,2]
[400304838,1767331841689,-187.65170597,0.000169,2]
[400304839,1767331841698,-3831.23294994,0.000169,2]
[400304840,1767331841707,-177.47226611,0.000169,2]
[400304841,1767331841716,-2800.5632075,0.000169,2]
[400304842,1767331841725,-2248.0,0.00016951,2]
[400304843,1767331841735,-1400.45183405,0.0001697,2]
[400304844,1767331841744,-209.8661293,0.00016973,2]
[400304845,1767331841753,-500.0,0.00016973,2]
[400304846,1767331841762,-500.0,0.00016973,2]
[400304847,1767331841770,-500.0,0.00016973,2]
[400304848,1767331841779,-501.51007074,0.00016973,2]
[400304849,1767331841788,-1620.0,0.00016977,2]
[400304850,1767331841798,-239.99756585,0.00016985,2]
[400304851,1767331841807,-516.66830415,0.00016994,2]
[400304852,1767331841816,-3099.3569691,0.00016995,2]
[400304853,1767331841825,-4591.0342795,0.00016995,2]
[400304854,1767331841835,-118965.3132383,0.00016995,2]
[400304855,1767331841844,-1920.1481347,0.00016995,2]
[400304856,1767331841853,-236998.84025919,0.00017,2]
[400304865,1767331843951,-817.28756811,0.00016417,2]
[400304866,1767331844012,-341.04,0.00016417,2]
[400304870,1767331846246,-3871.08678871,0.00016417,2]
[400304871,1767331846258,-1951.93892239,0.00016417,2]
[400304873,1767331846305,-2752.51681416,0.00016417,2]
[400304874,1767331846314,-190.32233688,0.00016658,2]
[400304875,1767331846325,-3729.01848402,0.00016658,2]
[400304876,1767331846336,-1681.28327184,0.00016658,2]
[400304877,1767331846360,-2983.4383552,0.00016658,2]
[400304878,1767331846480,-461.74759373,0.00016658,2]
[400304879,1767331846492,-688.0600517,0.00016658,2]
[400304880,1767331846502,-38788.7891702,0.00017,2]
[400304881,1767331846510,-347255.30120855,0.00017,2]
[400304882,1767331846523,-2437.37666779,0.00017,2]
[400304883,1767331846540,-5300.13672791,0.00017,2]
[400304884,1767331859472,2619.06921955,0.00043181,120]
[400304885,1767331911172,9999.00000001,0.00043181,120]
[400304893,1767332549999,177400.42083267,0.00043173,120]
[400304894,1767332562076,501.58223857,0.00043173,120]
[400304895,1767332589539,233536.47728673,0.00043173,30]
[400304896,1767332722850,174.97,0.00012585,2]
[400304899,1767333031540,-166.66,0.00015029,2]
[400304900,1767333031549,-195.0,0.00015108,2]
[400304901,1767333031559,-71.94596329,0.00015187,2]
[400304902,1767333031570,-178.05403671,0.00015187,2]
[400304903,1767333031579,-166.66,0.00015346,2]
[400304905,1767333031588,-191.20675757,0.00015516,2]
[400304906,1767333031597,-166.66,0.00015662,2]
[400304908,1767333031606,-205.97497883,0.00015731,2]
[400304911,1767333031617,-606.32502117,0.00015731,2]
[400304913,1767333031626,-189.61763527,0.00015812,2]
[400304915,1767333031635,-1794.28,0.00015849,2]
[400304916,1767333031645,-166.66,0.00015979,2]
[400304918,1767333031654,-151.0,0.00016095,2]
[400304920,1767333031663,-151.0,0.00016095,2]
[400304922,1767333031673,-170.65,0.00016203,2]
[400304924,1767333031682,-166.66,0.00016295,2]
[400304925,1767333031691,-185.86,0.00016386,2]
[400304926,1767333031700,-1641.77979649,0.00016532,2]
[400304929,1767333031710,-250.0,0.00016532,2]
[400304931,1767333031719,-195.0,0.00016532,2]
[400304933,1767333031728,-200.0,0.00016539,2]
[400304934,1767333031737,-1000.0,0.000166,2]
[400304935,1767333031747,-166.66,0.00016611,2]
[400304936,1767333031756,-176.21335283,0.00016625,2]
[400304937,1767333031765,-1200.0,0.00016641,2]
[400304939,1767333031774,-300.0,0.00016641,2]
[400304941,1767333031783,-4444.0,0.00016642,2]
[400304943,1767333031792,-4444.0,0.00016659,2]
[400304945,1767333031802,-239.71439909,0.0001666,2]
[400304946,1767333031811,-165.04,0.0001669,2]
[400304947,1767333031820,-4444.0,0.00016695,2]
[400304948,1767333031829,-22873.55875355,0.000167,2]
[400304949,1767333031840,-14989.68084274,0.000167,2]
[400304950,1767333031852,-565.39403671,0.000167,2]
[400304951,1767333031862,-8062.10780649,0.000167,2]
[400304952,1767333031873,-497.76627144,0.000167,2]
[400304953,1767333031884,-879.1913564,0.000167,2]
[400304954,1767333031895,-2332.08059724,0.000167,2]
[400304955,1767333037512,-175.63937265,0.00016699,2]
[400304956,1767333037522,-224.36062735,0.00016699,2]
[400304957,1767333037568,-275.63937265,0.00016699,2]
[400304958,1767333037577,-203.12272896,0.00016699,2]
[400304959,1767333037586,-315.85765215,0.00016699,2]
[400304960,1767333037595,-557.60799842,0.00016699,2]
[400304961,1767333037605,-332.54355379,0.00016699,2]
[400304962,1767333037614,-4915.22744987,0.000167,2]
[400304963,1767333037624,-594.16393369,0.000167,2]
[400304964,1767333037634,-419.12847376,0.000167,2]
[400305025,1767333039513,-459.875,0.000167,2]
[400305026,1767333039526,-936.43138001,0.000167,2]
[400305027,1767333039731,-1211.10014083,0.000167,2]
[400305028,1767333039742,-560.55818875,0.000167,2]
[400305029,1767333039754,-2012.48432537,0.000167,2]
[400305030,1767333039800,-732.18335078,0.000167,2]
[400305031,1767333039811,-32682.31025725,0.000167,2]
[400305032,1767333039822,-900.10768277,0.000167,2]
[400305033,1767333039846,-495.68719811,0.000167,2]
[400305035,1767333044304,-267.83086906,0.000167,2]
[400305036,1767333044316,-482.92950368,0.000167,2]
[400305037,1767333044328,-45436.74868816,0.000167,2]
[400305038,1767333044339,-737.88209692,0.000167,2]
[400305039,1767333044361,-2727.89505997,0.000167,2]
[400305040,1767333044372,-2170.09,0.000167,2]
[400305041,1767333044383,-1908.94807662,0.000167,2]
[400305042,1767333044426,-262.88309993,0.000167,2]
[400305043,1767333044438,-521.7277719,0.000167,2]
[400305044,1767333044450,-535.44798845,0.000167,2]
[400305045,1767333044487,-8432.85403011,0.000167,2]
[400305049,1767333045522,-248457.21004245,0.000167,2]
[400305050,1767333045771,-44746.7004408,0.000167,2]
[400305051,1767333045783,-1174.3244468,0.000167,2]
[400305052,1767333045798,-1031.79579359,0.000167,2]
[400305053,1767333045810,-254.638905,0.000167,2]
[400305054,1767333045820,-1401.12127199,0.000167,2]
[400305055,1767333045832,-619.59135763,0.000167,2]
[400305056,1767333045842,-466.71435071,0.000167,2]
[400305061,1767333370737,5000.0,0.000301,120]
[400305062,1767333371114,5000.0,0.000301,120]
[400305063,1767333371506,5000.0,0.000301,120]
[400305064,1767333376217,5000.0,0.000301,120]
[400305065,1767333376596,5000.0,0.000301,120]
[400305066,1767333376978,5000.0,0.000301,120]
[400305067,1767333384751,5000.0,0.000301,120]
[400305068,1767333385497,5000.0,0.000301,120]
[400305069,1767333386476,5000.0,0.000301,120]
[400305070,1767333387449,5000.0,0.000301,120]
[400305071,1767333388349,5000.0,0.000301,120]
[400305072,1767333389249,5000.0,0.000301,120]
[400305073,1767333390071,5000.0,0.000301,120]
[400305074,1767333390942,5000.0,0.000301,120]
[400305075,1767333391841,5000.0,0.000301,120]
[400305076,1767333394446,5000.0,0.000301,120]
[400305077,1767333395576,5000.0,0.000301,120]
[400305078,1767333440271,5000.0,0.000301,120]
[400305079,1767333441057,5000.0,0.000301,120]
[400305080,1767333443657,1000.0,0.000301,120]
[400305081,1767333444594,1000.0,0.000301,120]
[400305082,1767333445668,1000.0,0.000301,120]
[400305083,1767333446454,1000.0,0.000301,120]
[400305085,1767333519632,158.35,7.867e-05,2]
[400305094,1767333986510,9999.8088672,0.0003,120]
[400305095,1767334018140,-274.37361395,0.00013699,2]
[400305098,1767334148128,-162.0,0.000182,20]
[400305099,1767334173490,-338.0,0.0002,20]
[400305101,1767334231597,-302.28095713,0.00013699,2]
[400305102,1767334231611,-213.41542892,0.00013699,2]
[400305103,1767334231622,-96.89457108,0.00013699,2]
[400305104,1767334231664,-147.99955162,0.00013699,2]
[400305105,1767334231674,-195.0,0.00013699,2]
[400305106,1767334231684,-385.83882429,0.00013699,2]
[400305107,1767334231694,-263.0,0.00013699,2]
[400305108,1767334231703,-189.61763526,0.00014916,2]
[400305109,1767334231717,-150.0,0.00015016,2]
[400305110,1767334231727,-150.00000001,0.00015016,2]
[400305111,1767334231736,-269.19244789,0.00015016,2]
[400305112,1767334231746,-150.0,0.00015016,2]
[400305113,1767334231756,-150.0,0.00015016,2]
[400305114,1767334231766,-300.0,0.00015067,2]
[400305115,1767334231775,-300.0,0.00015067,2]
[400305116,1767334231785,-1200.0,0.00015067,2]
[400305117,1767334231795,-300.0,0.00015067,2]
[400305118,1767334231805,-150.17827166,0.00015068,2]
[400305119,1767334231816,-300.0,0.00015068,2]
[400305120,1767334231826,-1777.54360409,0.00015068,2]
[400305121,1767334231839,-775.96101303,0.00015068,2]
[400305122,1767334231848,-731.69009149,0.00015068,2]
[400305123,1767334231858,-195.0,0.00015068,2]
[400305124,1767334231867,-250.0,0.00015068,2]
[400305125,1767334231877,-1000.0,0.00015127,2]
[400305126,1767334231886,-383.93793035,0.00015318,2]
[400305127,1767334231896,-1003.15484712,0.00015467,2]
[400305128,1767334231905,-1000.0,0.00015565,2]
[400305129,1767334231915,-670.7782671,0.00015566,2]
[400305130,1767334231924,-571.1003565,0.00015566,2]
[400305131,1767334231934,-300.0,0.00015566,2]
[400305132,1767334231943,-2886.21134753,0.00015567,2]
[400305133,1767334231955,-1727.57054397,0.00015567,2]
[400305134,1767334231966,-1403.84725605,0.00015567,2]
[400305135,1767334231978,-803.70972726,0.00015567,2]
[400305136,1767334231992,-297.05507805,0.00015567,2]
[400305137,1767334232004,-1366.96461276,0.00015567,2]
[400305138,1767334232016,-634.47129063,0.00015567,2]
[400305139,1767334232027,-1848.75756851,0.00015567,2]
[400305140,1767334232045,-903.63050001,0.00015567,2]
[400305141,1767334232061,-265.00000012,0.00015567,2]
[400305142,1767334232073,-697.39149,0.00015567,2]
[400305143,1767334232085,-717.38573744,0.00015567,2]
[400305144,1767334232097,-6889.881243,0.00015567,2]
[400305197,1767334237644,-503.93718342,0.00015567,2]
[400305198,1767334237656,-446.49837639,0.00015567,2]
[400305199,1767334237711,-311.76691177,0.00015567,2]
[400305200,1767334237726,-978295.92113309,0.00015567,2]
[400305201,1767334237735,-18491.31,0.00015667,2]
[400305202,1767334237745,-5696.74,0.00015897,2]
[400305203,1767334237755,-1326.93,0.00016055,2]
[400305204,1767334237764,-1003.1548471,0.00016064,2]
[400305205,1767334237776,-299.99,0.00016116,4]
[400305206,1767334237790,-2809.76,0.00016116,2]
[400305207,1767334237799,-1533.02,0.00016116,2]
[400305208,1767334237808,-2333.71,0.00016116,2]
[400305209,1767334237818,-999.99,0.00016116,2]
[400305210,1767334237827,-250.0,0.00016123,2]
[400305211,1767334237836,-171.08,0.00016192,2]
[400305212,1767334237846,-178.8,0.00016192,2]
[400305213,1767334237855,-465.87,0.00016192,2]
[400305214,1767334237865,-171.08,0.00016192,2]
[400305215,1767334237874,-465.87,0.00016192,2]
[400305216,1767334237883,-178.8,0.00016192,2]
[400305217,1767334237893,-178.8,0.00016192,2]
[400305218,1767334237902,-150.0,0.00016192,2]
[400305220,1767334237911,-171.08,0.00016192,2]
[400305222,1767334237920,-151.05,0.00016192,2]
[400305224,1767334237930,-150.0,0.00016192,2]
[400305226,1767334237939,-462.62,0.00016192,2]
[400305228,1767334237948,-150.0,0.00016192,2]
[400305230,1767334237958,-178.8,0.00016192,2]
[400305232,1767334237968,-171.08,0.00016192,2]
[400305233,1767334237976,-150.0,0.00016192,2]
[400305234,1767334237985,-150.0,0.00016192,2]
[400305235,1767334237994,-178.8,0.00016192,2]
[400305236,1767334238003,-150.0,0.00016192,2]
[400305237,1767334238012,-171.08,0.00016192,2]
[400305238,1767334238021,-150.0,0.00016192,2]
[400305239,1767334238031,-171.08,0.00016192,2]
[400305240,1767334238040,-178.8,0.00016192,2]
[400305241,1767334238050,-178.8,0.00016192,2]
[400305242,1767334238059,-150.0,0.00016192,2]
[400305243,1767334238068,-171.08,0.00016192,2]
[400305244,1767334238079,-500.0,0.00016213,2]
[400305245,1767334238088,-150.99,0.00016213,2]
[400305246,1767334238097,-150.99,0.00016213,2]
[400305247,1767334238107,-1602.44,0.00016213,2]
[400305248,1767334238116,-9999.99,0.00016213,2]
[400305249,1767334238125,-5435.4,0.00016213,2]
[400305250,1767334238134,-347.37,0.00016213,2]
[400305251,1767334238144,-499.99,0.00016213,2]
[400305252,1767334238153,-3267.89,0.00016213,2]
[400305253,1767334238162,-4732.9285751,0.00016213,2]
[400305254,1767334238174,-934.52961562,0.00016213,2]
[400305255,1767334238185,-1749.18564804,0.00016213,2]
[400305256,1767334238197,-1658.57091694,0.00016213,2]
[400305257,1767334238207,-518.98264,0.00016213,2]
[400305258,1767334239795,-405.7926043,0.00016213,2]
[400305259,1767334239805,-1185.09639653,0.00016213,2]
[400305260,1767334240120,-4016.21360347,0.00016213,2]
[400305261,1767334240130,-6519.58,0.00016213,2]
[400305262,1767334240139,-4999.99,0.00016213,2]
[400305263,1767334240148,-11683.84,0.00016218,2]
[400305264,1767334240157,-790.84,0.00016438,2]
[400305265,1767334240167,-570.41332373,0.00016438,2]
[400305266,1767334240176,-570.41332373,0.00016438,2]
[400305267,1767334240186,-570.41332373,0.00016438,2]
[400305268,1767334240195,-570.41332373,0.00016438,2]
[400305269,1767334240204,-570.41332373,0.00016438,2]
[400305270,1767334240213,-570.41332373,0.00016438,2]
[400305271,1767334240223,-570.41332373,0.00016438,2]
[400305272,1767334240232,-570.41332373,0.00016438,2]
[400305273,1767334240241,-570.41332373,0.00016438,2]
[400305274,1767334240250,-570.41332373,0.00016438,2]
[400305275,1767334240260,-570.41332373,0.00016438,2]
[400305276,1767334240269,-570.41332373,0.00016438,2]
[400305277,1767334240278,-570.41332373,0.00016438,2]
[400305278,1767334240287,-570.41332373,0.00016438,2]
[400305279,1767334240296,-570.41332373,0.00016438,2]
[400305280,1767334240305,-570.41332373,0.00016438,2]
[400305281,1767334240315,-570.41332373,0.00016438,2]
[400305282,1767334240324,-570.41332373,0.00016438,2]
[400305283,1767334240334,-570.41332373,0.00016438,2]
[400305284,1767334240343,-570.41332373,0.00016438,2]
[400305285,1767334240353,-570.41332373,0.00016438,2]
[400305286,1767334240363,-570.41332373,0.00016438,2]
[400305287,1767334240374,-570.41332373,0.00016438,2]
[400305288,1767334240385,-570.41332373,0.00016438,2]
[400305289,1767334240394,-570.41332373,0.00016438,2]
[400305290,1767334240404,-570.41332373,0.00016438,2]
[400305291,1767334240413,-570.41332373,0.00016438,2]
[400305292,1767334240423,-570.41332373,0.00016438,2]
[400305293,1767334240434,-570.41332373,0.00016438,2]
[400305294,1767334240443,-570.41332373,0.00016438,2]
[400305295,1767334240454,-570.41332373,0.00016438,2]
[400305296,1767334240465,-570.41332373,0.00016438,2]
[400305297,1767334240474,-570.41332373,0.00016438,2]
[400305298,1767334240483,-570.41332373,0.00016438,2]
[400305299,1767334240492,-570.41332373,0.00016438,2]
[400305300,1767334240502,-570.41332373,0.00016438,2]
[400305301,1767334240512,-570.41332373,0.00016438,2]
[400305302,1767334240521,-570.41332373,0.00016438,2]
[400305303,1767334240531,-570.41332373,0.00016438,2]
[400305304,1767334240543,-570.41332373,0.00016438,2]
[400305305,1767334240553,-570.41332373,0.00016438,2]
[400305306,1767334240563,-570.41332373,0.00016438,2]
[400305307,1767334240573,-570.41332373,0.00016438,2]
[400305308,1767334240583,-570.41332373,0.00016438,2]
[400305309,1767334240593,-570.41332373,0.00016438,2]
[400305310,1767334240602,-570.41332373,0.00016438,2]
[400305311,1767334240611,-570.41332373,0.00016438,2]
[400305312,1767334240621,-570.41332373,0.00016438,2]
[400305313,1767334240634,-570.41332373,0.00016438,2]
[400305314,1767334240644,-570.41332373,0.00016438,2]
[400305315,1767334240658,-570.41332373,0.00016438,2]
[400305316,1767334240673,-570.41332373,0.00016438,2]
[400305317,1767334240682,-570.41332373,0.00016438,2]
[400305318,1767334240692,-570.41332373,0.00016438,2]
[400305319,1767334240703,-629.21941097,0.00016438,2]
[400305320,1767334240712,-629.21941097,0.00016438,2]
[400305321,1767334240724,-629.21941097,0.00016438,2]
[400305322,1767334240733,-629.21941097,0.00016438,2]
[400305323,1767334240742,-629.21941097,0.00016438,2]
[400305324,1767334240751,-629.21941097,0.00016438,2]
[400305325,1767334240763,-629.21941097,0.00016438,2]
[400305326,1767334240772,-629.21941097,0.00016438,2]
[400305327,1767334240782,-629.21941097,0.00016438,2]
[400305328,1767334240794,-629.21941097,0.00016438,2]
[400305329,1767334240804,-629.21941097,0.00016438,2]
[400305330,1767334240813,-629.21941097,0.00016438,2]
[400305331,1767334240822,-629.21941097,0.00016438,2]
[400305332,1767334240831,-629.21941097,0.00016438,2]
[400305333,1767334240840,-629.21941097,0.00016438,2]
[400305334,1767334240850,-330.84322968,0.00016438,2]
[400305335,1767334240862,-298.37618129,0.00016438,2]
[400305336,1767334240871,-629.21941097,0.00016438,2]
[400305337,1767334240880,-629.21941097,0.00016438,2]
[400305338,1767334240889,-629.21941097,0.00016438,2]
[400305339,1767334240898,-629.21941097,0.00016438,2]
[400305340,1767334240908,-629.21941097,0.00016438,2]
[400305341,1767334240917,-629.21941097,0.00016438,2]
[400305342,1767334240927,-629.21941097,0.00016438,2]
[400305343,1767334240936,-629.21941097,0.00016438,2]
[400305344,1767334240945,-629.21941097,0.00016438,2]
[400305345,1767334240956,-629.21941097,0.00016438,2]
[400305346,1767334240968,-629.21941097,0.00016438,2]
[400305347,1767334240979,-629.21941097,0.00016438,2]
[400305348,1767334240987,-629.21941097,0.00016438,2]
[400305349,1767334240997,-629.21941097,0.00016438,2]
[400305350,1767334241006,-629.21941097,0.00016438,2]
[400305351,1767334241016,-629.21941097,0.00016438,2]
[400305352,1767334241026,-629.21941097,0.00016438,2]
[400305353,1767334241037,-629.21941097,0.00016438,2]
[400305354,1767334241047,-629.21941085,0.00016438,2]
[400305355,1767334241057,-3849.78,0.00016438,2]
[400305356,1767334241066,-300.0,0.00016466,2]
[400305357,1767334241075,-500.0,0.00016487,2]
[400305358,1767334241085,-420.0,0.00016489,2]
[400305359,1767334241095,-989.64038294,0.000165,2]
[400305360,1767334241104,-151.0,0.0001652,2]
[400305361,1767334241114,-300.0,0.00016566,2]
[400305362,1767334241123,-480.0,0.00016573,2]
[400305363,1767334241135,-356.9226,0.00016599,2]
[400305364,1767334241144,-156.714,0.00016599,2]
[400305365,1767334241153,-830.972,0.00016599,2]
[400305366,1767334241162,-1000.0,0.000166,2]
[400305367,1767334241171,-3021.0296,0.00016603,2]
[400305368,1767334241180,-151.0,0.00016621,2]
[400305369,1767334241190,-151.0,0.00016621,2]
[400305370,1767334241199,-151.0,0.00016621,2]
[400305371,1767334241208,-151.0,0.00016621,2]
[400305372,1767334241218,-151.0,0.00016621,2]
[400305373,1767334241227,-151.0,0.00016621,2]
[400305374,1767334241236,-151.0,0.00016621,2]
[400305375,1767334241245,-151.0,0.00016621,2]
[400305376,1767334241254,-151.0,0.00016621,2]
[400305377,1767334241263,-151.0,0.00016621,2]
[400305378,1767334241272,-151.0,0.00016621,2]
[400305379,1767334241281,-151.0,0.00016621,2]
[400305380,1767334241290,-151.0,0.00016621,2]
[400305381,1767334241299,-151.0,0.00016621,2]
[400305382,1767334241308,-151.0,0.00016621,2]
[400305383,1767334241317,-151.0,0.00016621,2]
[400305384,1767334241326,-151.0,0.00016621,2]
[400305385,1767334241335,-151.0,0.00016621,2]
[400305386,1767334241345,-151.0,0.00016621,2]
[400305387,1767334241355,-151.0,0.00016621,2]
[400305388,1767334241364,-300.0,0.00016635,2]
[400305389,1767334241373,-221.44543499,0.0001666,2]
[400305390,1767334241382,-1003.1548471,0.00016661,2]
[400305391,1767334241392,-300.0,0.00016664,2]
[400305392,1767334241401,-173.79794353,0.00016685,2]
[400305393,1767334241410,-510.0,0.00016686,2]
[400305394,1767334241420,-7701.26936253,0.00016689,2]
[400305395,1767334241429,-306.505367,0.00016694,2]
[400305396,1767334241634,-3295.4774846,0.00016699,2]
[400305397,1767334241644,-49708.8080495,0.00016699,2]
[400305398,1767334241654,-1844.87173359,0.00016699,2]
[400305399,1767334241666,-1173.22049338,0.00016699,2]
[400305405,1767334243522,-151.0,0.00016191,2]
[400305406,1767334243532,-248.16,0.00016192,2]
[400305407,1767334243542,-178.8,0.00016192,2]
[400305408,1767334243551,-171.08,0.00016192,2]
[400305409,1767334243560,-6830.91033353,0.00016699,2]
[400305410,1767334243570,-500.0,0.00016699,2]
[400305411,1767334243580,-505.51730535,0.00016699,2]
[400305412,1767334243589,-500.0,0.00016699,2]
[400305413,1767334243599,-500.0,0.00016699,2]
[400305414,1767334243609,-507.94447262,0.00016699,2]
[400305415,1767334243619,-500.0,0.00016699,2]
[400305416,1767334243628,-500.0,0.00016699,2]
[400305417,1767334243638,-152.43262109,0.00016699,2]
[400305418,1767334243648,-547.84139381,0.00016699,2]
[400305419,1767334243658,-500.0,0.00016699,2]
[400305420,1767334243668,-507.14401581,0.00016699,2]
[400305421,1767334243677,-500.0,0.00016699,2]
[400305422,1767334243687,-506.81970095,0.00016699,2]
[400305423,1767334243699,-7414.1614976,0.00016699,2]
[400305424,1767334243708,-504.4048165,0.00016699,2]
[400305425,1767334243721,-151.0,0.000167,2]
[400305426,1767334243732,-790.84,0.00016712,2]
[400305427,1767334243741,-500.0,0.00016761,2]
[400305428,1767334243750,-1736.0,0.000168,2]
[400305429,1767334243762,-26124.52075987,0.000168,2]
[400305430,1767334244506,-869.12913994,0.000168,2]
[400305431,1767334244518,-813.26362631,0.000168,2]
[400305432,1767334244530,-392.42322,0.000168,2]
[400305433,1767334244541,-412.05845751,0.000168,2]
[400305434,1767334244568,-1101.40168,0.000168,2]
[400305435,1767334244579,-3795.87791637,0.000168,2]
[400305436,1767334244588,-343.4748358,0.0001687,2]
[400305437,1767334244599,-1302.81008527,0.0001687,2]
[400305438,1767334244611,-225.08273446,0.0001687,2]
[400305439,1767334244622,-283.27605011,0.00016899,2]
[400305440,1767334244633,-104.27641849,0.00016899,2]
[400305441,1767334244643,-501.76862766,0.00016899,2]
[400305442,1767334244653,-409.90839538,0.000169,2]
[400305443,1767334244665,-2146.20119742,0.000169,2]
[400305444,1767334244677,-83.57450801,0.000169,2]
[400305445,1767334244686,-159.11231596,0.000169,2]
[400305446,1767334244696,-645.21370262,0.000169,2]
[400305448,1767334244705,-500.0,0.000169,2]
[400305450,1767334244717,-500.0,0.000169,2]
[400305452,1767334244726,-500.0,0.000169,2]
[400305454,1767334244735,-500.0,0.000169,2]
[400305456,1767334244744,-500.0,0.000169,2]
[400305458,1767334244754,-500.0,0.000169,2]
[400305460,1767334244764,-446.88524214,0.000169,2]
[400305463,1767334244776,-53.11475786,0.000169,2]
[400305464,1767334244785,-500.0,0.000169,2]
[400305466,1767334244796,-500.0,0.000169,2]
[400305469,1767334244806,-500.0,0.000169,2]
[400305471,1767334244815,-500.0,0.000169,2]
[400305473,1767334244825,-261.87122919,0.000169,2]
[400305474,1767334244834,-999.0,0.00016941,3]
[400305477,1767334244844,-163.59427283,0.00016973,2]
[400305479,1767334244853,-500.0,0.00016973,2]
[400305481,1767334244863,-500.0,0.00016973,2]
[400305483,1767334244872,-1252.9723516,0.00016979,2]
[400305485,1767334244881,-790.84,0.00016986,2]
[400305487,1767334244889,-40838.92141809,0.00016986,2]
[400305489,1767334244900,-51059.99858191,0.00016986,2]
[400305491,1767334244909,-173.79794353,0.0001699,2]
[400305493,1767334244918,-75441.14007448,0.00017,2]
[400305495,1767334244929,-1164.99761564,0.00017,2]
[400305497,1767334244940,-4779.79456686,0.00017,2]
[400305499,1767334244951,-782.72427508,0.00017,2]
[400305501,1767334244961,-244733.95596778,0.00017,2]
[400305504,1767334244972,-3865.14,0.00017,2]
[400305506,1767334244984,-4963.42952712,0.00017,2]
[400305515,1767334245058,-364.67185214,0.00017,2]
[400305517,1767334245069,-35384.55692254,0.00017,2]
[400305529,1767334245684,-151.0,0.00016414,2]
[400305530,1767334245694,-1240.93890332,0.000168,2]
[400305531,1767334245703,-4262.58824616,0.00017,2]
[400305532,1767334245746,-44374.96821623,0.00017,2]
[400305539,1767334245856,-1928.75970184,0.00017,2]
[400305541,1767334245869,-484.33002704,0.00017,2]
[400305543,1767335184748,160.0,0.000301,120]
[400305544,1767335202141,-399.24563709,0.00013373,2]
[400305545,1767335202163,-145.25683615,0.00015105,2]
[400305564,1767335431791,-800.936651,0.00014658,2]
[400305565,1767335431801,-272.0,0.00014732,2]
[400305566,1767335431810,-200.0,0.00014806,2]
[400305567,1767335431820,-91.77595108,0.00015181,2]
[400305568,1767335431831,-68.88404892,0.00015181,2]
[400305569,1767335431841,-500.0,0.000152,2]
[400305570,1767335431851,-198.59,0.00015203,2]
[400305571,1767335431861,-300.0,0.00015274,2]
[400305572,1767335431870,-197.0,0.00015274,2]
[400305573,1767335431880,-698.0,0.00015274,2]
[400305574,1767335431889,-1603.57729438,0.00015275,2]
[400305575,1767335431913,-649.84,0.00014743,2]
[400305576,1767335431923,-6783.0511826,0.00015275,2]